bitfinex/quotes_SOLUSD_20251009
["timestamp","ask_amount","ask_price","bid_price","bid_amount"]
[1760046915315,0.65,220.37,220.34,80.1]
[1760046915616,11.3440421,220.38,220.34,80.1]
[1760046915818,11.9940421,220.38,220.35,0.67]
[1760046916116,16.53165894,220.38,220.35,0.67]
[1760046916616,15.88165894,220.38,220.35,0.67]
[1760046917324,11.3440421,220.38,220.34,80.1]
[1760046917521,0.65,220.37,220.34,80.1]
[1760046918021,0.65,220.37,220.34,80.77]
[1760046918223,11.9940421,220.38,220.34,80.77]
[1760046918617,0.65,220.37,220.34,80.1]
[1760046918821,0.65,220.36,220.34,80.1]
[1760046919012,32.11,220.36,220.34,80.1]
[1760046919422,31.46,220.36,220.3,107.44031478]
[1760046919617,0.65,220.35,220.3,94.47983704]
[1760046919816,0.65,220.35,220.31,0.67]
[1760046922218,15.88454206,220.34,220.31,0.67]
[1760046923024,0.65,220.33,220.3,80.1]
[1760046923223,0.65,220.33,220.28,80.77]
[1760046923424,0.65,220.33,220.29,0.67]
[1760046923730,0.65,220.33,220.28,93.72393222]
[1760046923926,16.53454206,220.34,220.29,0.67]
[1760046924111,0.65,220.33,220.29,0.67]
[1760046924313,4.53885257,220.32,220.29,0.67]
[1760046924628,4.53885257,220.32,220.28,93.72393222]
[1760046924928,4.53885257,220.32,220.29,0.67]
[1760046925114,4.53885257,220.32,220.28,93.72393222]
[1760046925316,4.53885257,220.32,220.3,0.67]
[1760046925517,4.53824052,220.35,220.31,21.47]
[1760046925721,4.53824052,220.35,220.32,0.67]
[1760046926636,4.53824052,220.35,220.31,20.8]
[1760046926810,4.53824052,220.35,220.33,0.67]
[1760046928234,4.53802868,220.36,220.33,0.67]
[1760046928435,35.99802868,220.36,220.33,0.67]
[1760046929136,36.64802868,220.36,220.31,20.8]
[1760046929310,36.64802868,220.36,220.32,0.67]
[1760046929511,35.99802868,220.36,220.33,0.67]
[1760046931518,36.64802868,220.36,220.33,0.67]
[1760046931838,0.65,220.35,220.31,21.47]
[1760046932032,0.65,220.35,220.32,0.67]
[1760046932240,47.99310038,220.36,220.32,0.67]
[1760046932930,47.99310038,220.36,220.32,0.7]
[1760046933329,47.34310038,220.36,220.33,0.7]
[1760046935240,4.53837432,220.35,220.32,0.7]
[1760046935741,4.53837432,220.35,220.31,20.8]
[1760046935918,4.53837432,220.35,220.32,0.7]
[1760046936119,4.53837432,220.35,220.33,0.7]
[1760046936931,4.53837432,220.35,220.31,20.8]
[1760046937232,4.53837432,220.35,220.32,0.7]
[1760046940938,4.53837432,220.35,220.32,81.0]
[1760046941140,4.53837432,220.35,220.33,0.7]
[1760046941343,4.53837432,220.35,220.32,80.3]
[1760046941643,4.53837432,220.35,220.33,0.7]
[1760046942738,4.53837432,220.35,220.34,0.7]
[1760046944730,4.53837432,220.35,220.32,80.3]
[1760046944936,4.53837432,220.35,220.33,0.7]
[1760046945146,4.53837432,220.35,220.34,0.66]
[1760046945320,4.53837432,220.35,220.32,80.3]
[1760046945523,4.53837432,220.35,220.33,0.66]
[1760046946744,4.53837432,220.35,220.34,0.66]
[1760046948044,31.46,220.36,220.34,0.66]
[1760046948250,31.46,220.36,220.33,0.66]
[1760046949150,35.99803746,220.36,220.33,0.66]
[1760046952248,36.67803746,220.36,220.33,0.66]
[1760046952449,35.99803746,220.36,220.33,0.66]
[1760046952839,35.99803746,220.36,220.33,80.96]
[1760046953349,36.67803746,220.36,220.33,80.96]
[1760046954158,0.68,220.35,220.33,80.3]
[1760046956250,47.34310916,220.36,220.33,80.3]
[1760046956554,47.34310916,220.36,220.33,80.96]
[1760046956858,47.34310916,220.36,220.33,14.29047774]
[1760046957738,48.02310916,220.36,220.33,13.63047774]
[1760046957936,48.02310916,220.36,220.33,14.29047774]
[1760046959349,47.34310916,220.36,220.33,14.29047774]
[1760046959547,48.02310916,220.36,220.33,14.29047774]
[1760046960649,47.34310916,220.36,220.33,14.29047774]
[1760046960836,48.02310916,220.36,220.33,13.63047774]
[1760046961358,0.68,220.35,220.31,0.66]
[1760046961657,0.68,220.35,220.32,14.29047774]
[1760046962033,48.02310916,220.36,220.32,14.29047774]
[1760046962453,4.53844059,220.34,220.32,14.29047774]
[1760046962960,4.53844059,220.34,220.32,13.63047774]
[1760046963155,4.53844059,220.34,220.32,14.34047774]
[1760046963642,4.53823462,220.35,220.32,14.34047774]
[1760046963844,4.53823462,220.35,220.33,0.71]
[1760046964541,4.53823462,220.35,220.32,13.63047774]
[1760046964851,4.53823462,220.35,220.32,14.34047774]
[1760046966070,4.53823462,220.35,220.32,0.71]
[1760046967744,4.53823462,220.35,220.32,81.01]
[1760046968350,32.18,220.34,220.32,80.3]
[1760046968543,0.72,220.33,220.32,80.3]
[1760046969756,5.25864657,220.33,220.32,80.3]
[1760046972960,4.53864657,220.33,220.32,80.3]
[1760046973639,15.885263,220.33,220.29,81.01]
[1760046973844,31.46,220.32,220.3,0.71]
[1760046974473,31.46,220.32,220.29,81.01]
[1760046974965,4.53905859,220.31,220.29,80.3]
[1760046975147,4.53905859,220.31,220.29,81.01]
[1760046975741,4.53905859,220.31,220.3,0.71]
[1760046975960,35.99905859,220.31,220.3,0.71]
[1760046977743,35.99905859,220.31,220.29,80.3]
[1760046977942,35.99905859,220.31,220.29,81.01]
[1760046978160,35.99905859,220.31,220.29,80.3]
[1760046978359,35.99905859,220.31,220.3,0.71]
[1760046979561,35.99905859,220.31,220.3,81.01]
[1760046984570,35.99905859,220.31,220.3,80.3]
[1760046984777,35.99905859,220.31,220.3,81.01]
[1760046989264,35.99905859,220.31,220.3,80.3]
[1760046994494,35.99905859,220.31,220.29,81.01]
[1760046995086,35.99905859,220.31,220.29,80.3]
[1760046995280,35.99905859,220.31,220.3,0.66]
[1760046998095,32.12,220.35,220.31,0.66]
[1760047000395,15.88454206,220.34,220.31,80.96]
[1760047000598,31.46,220.33,220.31,80.96]
[1760047001486,4.53885257,220.32,220.31,80.3]
[1760047001884,4.53885257,220.32,220.31,80.96]
[1760047004302,4.53864657,220.33,220.31,80.96]
[1760047004599,4.53864657,220.33,220.32,0.66]
[1760047006297,4.53864657,220.33,220.32,80.96]
[1760047006797,31.46,220.34,220.32,80.96]
[1760047007093,31.46,220.34,220.33,0.66]
[1760047008397,31.46,220.35,220.33,0.66]
[1760047008896,4.53844059,220.34,220.33,13.63047774]
[1760047010001,4.53844059,220.34,220.33,14.29047774]
[1760047012278,4.53844059,220.34,220.33,94.59047774]
[1760047024115,15.88310038,220.36,220.33,94.59047774]
[1760047024500,16.57310038,220.36,220.33,94.59047774]
[1760047024709,15.88310038,220.36,220.33,94.59047774]
[1760047026110,15.88310038,220.36,220.33,94.58047774]
[1760047029810,15.88310038,220.36,220.33,93.93047774]
[1760047030001,15.88310038,220.36,220.34,0.65]
[1760047032108,11.3450717,220.36,220.34,0.65]
[1760047032311,42.7850717,220.36,220.35,0.65]
[1760047032520,42.7850717,220.36,220.35,80.95]
[1760047032711,42.7850717,220.36,220.35,80.3]
[1760047034919,47.32310038,220.36,220.35,80.3]
[1760047035720,15.88310038,220.36,220.35,80.3]
[1760047037027,16.57310038,220.36,220.35,80.3]
[1760047038905,16.57310038,220.36,220.27,0.65]
[1760047038906,10.87647521,220.35,220.27,0.65]
[1760047039108,31.44,220.34,220.27,0.65]
[1760047039338,0.69,220.33,220.27,0.65]
[1760047039626,31.44,220.32,220.27,0.65]
[1760047039934,0.69,220.31,220.26,14.28357495]
[1760047040234,4.53947069,220.29,220.26,14.28357495]
[1760047040532,4.53947069,220.29,220.26,0.65]
[1760047040533,31.44,220.28,220.26,0.65]
[1760047042209,35.97968153,220.28,220.26,0.65]
[1760047043423,0.69,220.27,220.25,2.36939856]
[1760047043606,32.13,220.26,220.22,0.65]
[1760047043802,32.13,220.26,220.22,14.28543394]
[1760047044008,31.44,220.26,220.23,0.65]
[1760047044210,4.54029511,220.25,220.23,0.65]
[1760047045128,4.54029511,220.25,220.21,14.28605372]
[1760047045336,5.23029511,220.25,220.21,54.59728809]
[1760047045638,31.44,220.24,220.21,54.59728809]
[1760047046639,4.54070744,220.23,220.21,54.59728809]
[1760047048112,4.54070744,220.23,220.21,53.94728809]
[1760047048455,4.54070744,220.23,220.21,54.59728809]
[1760047048936,4.54070744,220.23,220.21,53.94728809]
[1760047049523,4.54070744,220.23,220.21,54.59728809]
[1760047050137,11.34934294,220.28,220.21,53.94728809]
[1760047050343,0.69,220.26,220.22,0.65]
[1760047050539,0.69,220.26,220.21,53.94728809]
[1760047050540,31.44,220.25,220.21,53.94728809]
[1760047050741,32.13,220.25,220.21,54.59728809]
[1760047050927,31.44,220.25,220.21,54.59728809]
[1760047051132,0.69,220.24,220.21,53.94728809]
[1760047051449,31.44,220.23,220.21,53.94728809]
[1760047052549,4.54091363,220.22,220.21,53.94728809]
[1760047053040,4.54091363,220.22,220.21,54.60728809]
[1760047056839,4.54091363,220.22,220.21,0.66]
[1760047058033,31.44,220.25,220.21,0.66]
[1760047058350,31.44,220.25,220.21,14.29605372]
[1760047058648,31.44,220.25,220.22,0.66]
[1760047059225,31.44,220.25,220.23,13.63605372]
[1760047059453,31.44,220.25,220.24,0.66]
[1760047062752,31.44,220.25,220.24,54.60728809]
[1760047063829,35.98029511,220.25,220.24,54.60728809]
[1760047066547,31.44,220.25,220.24,54.60728809]
[1760047066950,31.44,220.26,220.24,54.60728809]
[1760047067149,31.44,220.26,220.25,0.71]
[1760047069139,35.98025301,220.26,220.24,53.94728809]
[1760047069339,35.98025301,220.26,220.25,0.71]
[1760047069560,35.98025301,220.26,220.24,54.65728809]
[1760047070255,35.98025301,220.26,220.24,53.94728809]
[1760047070461,35.98025301,220.26,220.25,0.71]
[1760047074965,35.98025301,220.26,220.24,53.94728809]
[1760047075157,35.98025301,220.26,220.24,54.65728809]
[1760047075862,35.98025301,220.26,220.24,53.94728809]
[1760047080964,35.98025301,220.26,220.24,54.65728809]
[1760047083563,35.98025301,220.26,220.25,0.66]
[1760047083874,35.98025301,220.26,220.24,53.94728809]
[1760047084063,35.98025301,220.26,220.24,54.60728809]
[1760047084980,31.44,220.26,220.24,54.60728809]
[1760047085477,35.98009855,220.26,220.24,54.60728809]
[1760047085678,31.44,220.26,220.25,0.66]
[1760047086067,35.98008898,220.26,220.25,0.66]
[1760047086373,35.98008898,220.26,220.24,54.60728809]
[1760047086577,4.53967677,220.28,220.25,0.66]
[1760047086765,31.44,220.27,220.25,0.66]
[1760047088377,35.97988723,220.27,220.26,0.66]
[1760047088556,35.97988723,220.27,220.26,54.60728809]
[1760047088959,31.44,220.27,220.26,54.60728809]
[1760047089981,35.9798721,220.28,220.26,54.60728809]
[1760047090679,35.9798721,220.28,220.27,0.66]
[1760047091482,35.9798721,220.28,220.26,54.60728809]
[1760047093168,31.44,220.28,220.26,54.60728809]
[1760047093497,4.53947069,220.29,220.26,53.94728809]
[1760047093679,31.44,220.28,220.26,53.94728809]
[1760047093888,31.44,220.28,220.26,54.60728809]
[1760047094187,31.44,220.28,220.26,53.94728809]
[1760047094363,31.44,220.28,220.26,54.60728809]
[1760047094693,4.53988287,220.27,220.26,54.60728809]
[1760047095064,5.19988287,220.27,220.26,53.94728809]
[1760047095991,4.53988287,220.27,220.26,53.94728809]
[1760047098296,4.53988287,220.27,220.24,0.66]
[1760047098479,31.44,220.26,220.24,0.66]
[1760047098680,31.44,220.26,220.21,85.38728809]
[1760047098890,31.44,220.26,220.25,0.66]
[1760047100597,35.98008898,220.26,220.25,0.66]
[1760047103798,31.44,220.26,220.25,0.66]
[1760047104376,31.44,220.26,220.24,0.66]
[1760047105195,4.53967677,220.28,220.24,0.66]
[1760047105399,31.44,220.27,220.24,0.66]
[1760047106602,35.97990676,220.27,220.24,0.66]
[1760047109390,35.97990676,220.27,220.22,18.17570996]
[1760047109583,35.97990676,220.27,220.23,0.66]
[1760047110401,35.97967677,220.28,220.23,54.60728809]
[1760047110606,35.97967677,220.28,220.24,0.66]
[1760047110775,35.97967677,220.28,220.25,0.66]
[1760047113401,36.62967677,220.28,220.24,0.69]
[1760047113606,36.62967677,220.28,220.25,0.69]
[1760047114404,0.65,220.35,220.25,86.07728809]
[1760047114582,0.65,220.35,220.28,20.8]
[1760047114777,31.46,220.34,220.28,20.8]
[1760047114982,31.46,220.34,220.29,0.69]
[1760047115178,31.46,220.35,220.29,0.69]
[1760047115384,47.34421365,220.35,220.29,0.69]
[1760047116019,35.99823462,220.35,220.29,5.22946507]
[1760047116304,4.53823462,220.35,220.3,0.69]
[1760047116682,5.18823462,220.35,220.3,0.69]
[1760047116998,4.53823462,220.35,220.3,0.69]
[1760047119198,4.53802868,220.36,220.3,5.22922478]
[1760047119516,31.46,220.37,220.3,5.22922478]
[1760047119517,32.11,220.37,220.31,0.69]
[1760047119712,32.11,220.37,220.31,68.26652735]
[1760047120007,4.53779571,220.38,220.32,0.69]
[1760047120715,4.53779571,220.38,220.32,12.03281966]
[1760047120915,4.53779571,220.38,220.33,0.69]
[1760047121095,11.34130834,220.44,220.35,20.8]
[1760047121296,36.64658757,220.43,220.36,0.69]
[1760047122093,16.52805651,220.43,220.36,0.69]
[1760047122500,31.46,220.42,220.36,0.69]
[1760047122702,4.53699922,220.41,220.36,0.69]
[1760047123817,4.53679339,220.42,220.36,0.69]
[1760047124912,4.53679339,220.42,220.36,5.2280001]
[1760047125109,35.99661322,220.43,220.37,0.69]
[1760047125325,0.65,220.44,220.37,0.69]
[1760047125530,10.87647521,220.48,220.37,0.69]
[1760047125531,13.62614402,220.53,220.41,20.8]
[1760047125706,5.29665366,220.58,220.42,32.12]
[1760047125707,0.68,220.5,220.42,32.12]
[1760047125909,4.53535307,220.49,220.43,0.66]
[1760047126411,4.53535307,220.49,220.43,14.28181306]
[1760047126616,4.53535307,220.49,220.44,0.66]
[1760047126994,4.53517212,220.5,220.44,0.66]
[1760047128022,4.53517212,220.5,220.44,5.19629241]
[1760047128211,4.53517212,220.5,220.45,0.66]
[1760047129132,11.3369471,220.52,220.45,0.66]
[1760047129932,12.0169471,220.52,220.45,0.66]
[1760047130226,16.55168317,220.52,220.46,13.61995777]
[1760047130431,16.55168317,220.52,220.47,0.66]
[1760047130805,5.21473607,220.52,220.47,0.66]
[1760047131001,5.21473607,220.52,220.46,45.09995777]
[1760047131320,5.21473607,220.52,220.48,0.66]
[1760047132026,0.68,220.51,220.47,13.6187212]
[1760047132318,0.68,220.5,220.47,13.6187212]
[1760047132514,0.68,220.49,220.47,13.6187212]
[1760047132702,0.68,220.49,220.41,25.33698087]
[1760047132900,0.68,220.48,220.41,36.03698087]
[1760047133105,0.68,220.48,220.44,20.8]
[1760047134213,5.21556721,220.48,220.44,20.8]
[1760047134416,5.21556721,220.48,220.41,0.66]
[1760047134417,0.68,220.47,220.41,0.66]
[1760047134617,0.68,220.47,220.4,4.53719289]
[1760047134618,0.68,220.47,220.4,0.66]
[1760047134820,0.68,220.47,220.41,13.6230502]
[1760047135008,0.68,220.46,220.38,32.16]
[1760047135208,0.68,220.45,220.38,52.96]
[1760047135424,0.68,220.45,220.39,0.66]
[1760047135923,0.68,220.45,220.4,13.62366885]
[1760047136411,42.81714606,220.52,220.41,0.66]
[1760047136412,0.68,220.47,220.41,0.66]
[1760047137617,4.53597024,220.46,220.41,0.66]
[1760047137818,4.53597024,220.46,220.42,0.66]
[1760047139413,0.68,220.46,220.42,0.66]
[1760047140323,11.33912687,220.48,220.43,0.66]
[1760047140636,12.01912687,220.48,220.43,0.66]
[1760047141511,0.68,220.5,220.43,0.66]
[1760047141928,0.68,220.5,220.43,14.28119457]
[1760047142131,11.33739621,220.51,220.44,0.66]
[1760047142825,16.53233793,220.51,220.44,70.48103079]
[1760047143032,16.53233793,220.51,220.45,0.67]
[1760047145236,5.19494172,220.51,220.45,5.20617483]
[1760047145433,4.53494172,220.51,220.45,5.20617483]
[1760047145621,5.19494172,220.51,220.45,18.8261326]
[1760047146056,5.19494172,220.51,220.46,0.67]
[1760047146213,4.53453044,220.53,220.47,0.67]
[1760047146413,5.19453044,220.53,220.47,0.67]
[1760047151938,5.19453044,220.53,220.47,54.61728809]
[1760047152133,5.19422148,220.55,220.48,0.67]
[1760047152922,4.53422148,220.55,220.5,20.8]
[1760047153127,5.19422148,220.55,220.51,0.67]
[1760047153336,5.19422148,220.55,220.51,54.61728809]
[1760047154039,4.53422148,220.55,220.51,53.94728809]
[1760047154232,4.53384844,220.57,220.52,0.67]
[1760047154535,4.53384844,220.57,220.52,12.00433513]
[1760047154720,4.53384844,220.57,220.53,0.67]
[1760047154921,4.53384844,220.57,220.54,0.67]
[1760047156223,5.19384844,220.57,220.53,4.53384844]
[1760047156423,5.19384844,220.57,220.53,0.67]
[1760047157142,5.19384844,220.57,220.51,58.48215604]
[1760047157143,0.66,220.56,220.51,86.09728809]
[1760047157547,0.66,220.56,220.52,0.67]
[1760047157741,0.66,220.56,220.52,54.61728809]
[1760047158729,4.53384844,220.57,220.53,0.67]
[1760047159041,4.53411924,220.55,220.5,20.8]
[1760047159347,0.66,220.54,220.5,20.8]
[1760047159531,0.66,220.53,220.44,31.5]
[1760047159731,0.66,220.52,220.44,4.53411924]
[1760047160046,0.66,220.51,220.41,52.99]
[1760047160243,0.66,220.5,220.41,52.99]
[1760047160548,0.66,220.49,220.42,5.27653138]
[1760047160744,0.66,220.48,220.4,20.8]
[1760047161087,4.53597024,220.46,220.38,14.29428756]
[1760047161222,0.66,220.45,220.36,32.19]
[1760047161426,0.66,220.45,220.39,20.8]
[1760047161622,0.66,220.44,220.36,45.81552515]
[1760047161849,0.66,220.43,220.36,0.67]
[1760047162045,0.66,220.43,220.38,20.8]
[1760047162250,0.66,220.42,220.38,20.8]
[1760047162549,0.66,220.42,220.36,0.67]
[1760047162939,42.39647521,220.5,220.38,20.8]
[1760047163251,0.66,220.43,220.38,20.8]
[1760047163549,0.66,220.43,220.38,21.47]
[1760047164335,0.66,220.46,220.39,0.67]
[1760047164750,0.66,220.48,220.39,0.67]
[1760047165258,4.5357645,220.47,220.39,0.67]
[1760047165558,0.66,220.46,220.39,0.67]
[1760047167053,4.536176,220.45,220.39,80.97]
[1760047169136,4.536176,220.45,220.4,0.67]
[1760047169353,4.536176,220.45,220.41,0.67]
[1760047171860,11.33941125,220.47,220.39,80.3]
[1760047172157,0.66,220.44,220.39,80.97]
[1760047172361,0.66,220.44,220.4,0.67]
[1760047172658,0.66,220.44,220.4,80.97]
[1760047173054,16.55517575,220.47,220.41,0.72]
[1760047176965,16.55517575,220.47,220.4,80.3]
[1760047177265,0.68,220.46,220.4,80.3]
[1760047177864,0.68,220.46,220.4,81.02]
[1760047178363,4.536176,220.45,220.4,81.02]
[1760047178565,5.216176,220.45,220.41,0.72]
[1760047179663,16.556616,220.45,220.4,80.3]
[1760047179850,0.68,220.44,220.4,80.3]
[1760047180255,4.53679339,220.42,220.4,80.3]
[1760047181762,4.53679339,220.42,220.38,80.3]
[1760047181763,0.68,220.41,220.38,80.3]
[1760047181964,0.68,220.4,220.38,80.3]
[1760047182469,4.53741095,220.39,220.38,80.3]
[1760047184250,16.55877687,220.42,220.38,80.3]
[1760047184454,0.68,220.41,220.38,80.3]
[1760047187372,4.53720508,220.4,220.36,81.02]
[1760047187576,4.53720508,220.4,220.37,0.66]
[1760047188372,4.53720508,220.4,220.38,0.66]
[1760047189068,4.53720508,220.4,220.39,0.66]
[1760047189973,4.53699922,220.41,220.39,0.66]
[1760047193581,15.87877687,220.42,220.39,0.66]
[1760047195180,15.87877687,220.42,220.35,2.36836719]
[1760047195389,0.67,220.41,220.36,0.66]
[1760047195588,0.67,220.41,220.37,0.66]
[1760047196062,15.87877687,220.42,220.38,0.66]
[1760047196368,16.54877687,220.42,220.38,0.66]
[1760047196679,15.87877687,220.42,220.39,0.66]
[1760047196894,47.45877687,220.42,220.39,0.66]
[1760047200293,0.67,220.47,220.39,0.66]
[1760047200496,31.58,220.47,220.39,21.46]
[1760047200798,31.58,220.47,220.4,21.46]
[1760047200982,31.58,220.47,220.41,0.66]
[1760047202272,4.53597024,220.46,220.41,0.66]
[1760047202983,4.53597024,220.46,220.42,0.7]
[1760047203186,4.53597024,220.46,220.43,0.7]
[1760047203571,31.58,220.47,220.43,0.7]
[1760047203774,36.80582051,220.47,220.43,0.7]
[1760047204173,36.11582051,220.47,220.43,0.7]
[1760047204488,36.80582051,220.47,220.4,20.8]
[1760047204800,47.45523176,220.47,220.41,0.7]
[1760047204984,0.69,220.46,220.41,0.7]
[1760047205186,0.69,220.46,220.41,80.3]
[1760047205483,0.69,220.45,220.37,21.5]
[1760047205799,0.69,220.44,220.34,3.06848122]
[1760047206010,10.87647521,220.42,220.34,2.36848122]
[1760047206182,32.29,220.41,220.34,2.36848122]
[1760047206381,16.57021778,220.4,220.34,2.36848122]
[1760047206684,0.69,220.39,220.34,2.36848122]
[1760047206881,0.69,220.38,220.34,2.36848122]
[1760047207093,31.79,220.37,220.27,13.80430492]
[1760047207412,11.56647521,220.36,220.26,3.06916494]
[1760047207577,0.69,220.35,220.26,23.86916494]
[1760047207773,0.69,220.34,220.26,23.86916494]
[1760047208003,32.31,220.33,220.26,3.06916494]
[1760047208373,15.88598401,220.32,220.26,3.06916494]
[1760047208575,32.31,220.33,220.27,0.7]
[1760047210077,32.31,220.33,220.26,2.36916494]
[1760047210379,26.76318029,220.31,220.22,0.7]
[1760047210583,26.76318029,220.31,220.22,3.06970041]
[1760047210776,0.69,220.3,220.22,3.06970041]
[1760047211096,32.31,220.29,220.22,3.06970041]
[1760047211400,0.69,220.28,220.22,3.06970041]
[1760047213280,4.53988287,220.27,220.22,3.06970041]
[1760047213498,31.62,220.27,220.23,0.7]
[1760047213698,31.62,220.28,220.23,0.7]
[1760047213902,31.62,220.28,220.24,0.7]
[1760047214289,0.69,220.29,220.24,0.7]
[1760047214499,31.62,220.29,220.25,0.7]
[1760047215494,4.53967677,220.28,220.23,0.7]
[1760047215804,5.22967677,220.28,220.24,0.7]
[1760047216304,4.53967677,220.28,220.24,0.7]
[1760047216687,36.15967677,220.28,220.24,0.7]
[1760047217292,4.53967677,220.28,220.24,0.7]
[1760047217893,5.22967677,220.28,220.24,0.7]
[1760047218808,5.22967677,220.28,220.22,3.06970041]
[1760047218809,0.69,220.27,220.22,3.06970041]
[1760047219006,0.69,220.26,220.22,3.06970041]
[1760047219307,4.53967677,220.28,220.22,3.06970041]
[1760047219513,5.22967677,220.28,220.22,3.06970041]
[1760047223015,5.22967677,220.28,220.22,83.36970041]
[1760047223814,4.53967677,220.28,220.23,0.7]
[1760047224196,5.22967677,220.28,220.24,0.7]
[1760047224398,4.53967677,220.28,220.22,82.66970041]
[1760047224600,5.22967677,220.28,220.22,83.36970041]
[1760047226626,5.22967677,220.28,220.22,82.66970041]
[1760047226916,5.22967677,220.28,220.23,0.7]
[1760047227813,4.53967677,220.28,220.23,0.7]
[1760047228005,4.54008898,220.26,220.23,0.7]
[1760047228200,4.54008898,220.26,220.22,82.66970041]
[1760047228410,32.29,220.25,220.13,5.10458008]
[1760047228629,0.69,220.24,220.16,0.7]
[1760047228809,0.69,220.24,220.16,3.07020249]
[1760047229120,0.69,220.24,220.17,0.7]
[1760047229700,31.6,220.23,220.17,0.7]
[1760047230119,4.54091363,220.22,220.17,0.7]
[1760047231814,16.5831977,220.22,220.17,0.7]
[1760047232013,0.69,220.21,220.16,2.37020249]
[1760047232207,0.69,220.2,220.16,3.07020249]
[1760047232395,0.69,220.2,220.16,2.37020249]
[1760047233210,0.69,220.2,220.14,21.5]
[1760047233914,4.54153231,220.19,220.14,21.5]
[1760047234110,4.54153231,220.19,220.15,0.69]
[1760047234310,36.14153231,220.19,220.15,0.69]
[1760047234826,36.14153231,220.19,220.16,0.69]
[1760047235521,4.54178391,220.18,220.14,0.69]
[1760047235712,4.54178391,220.18,220.15,0.69]
[1760047237405,4.54178391,220.18,220.13,23.86051906]
[1760047237604,0.7,220.17,220.13,3.06051906]
[1760047237805,0.7,220.16,220.13,2.37051906]
[1760047239224,5.24231598,220.16,220.12,0.1]
[1760047239421,36.84231598,220.16,220.12,0.79]
[1760047240320,0.7,220.15,220.12,0.1]
[1760047240915,0.7,220.14,220.12,0.1]
[1760047241119,0.7,220.13,220.12,0.1]
[1760047242308,31.6,220.13,220.12,0.1]
[1760047243229,32.3,220.13,220.12,0.1]
[1760047244213,4.54235748,220.15,220.12,0.1]
[1760047244529,31.6,220.14,220.12,0.79]
[1760047244717,31.6,220.14,220.12,0.1]
[1760047245729,4.54277018,220.13,220.12,0.1]
[1760047246642,5.25277018,220.13,220.12,0.1]
[1760047248521,16.12924539,220.13,220.12,0.1]
[1760047250941,36.16277018,220.13,220.12,0.1]
[1760047251141,47.03924539,220.13,220.12,0.1]
[1760047251837,36.16277018,220.13,220.12,0.1]
[1760047252223,4.54251274,220.15,220.12,0.1]
[1760047252419,31.62,220.14,220.13,0.65]
[1760047252836,31.62,220.14,220.12,0.1]
[1760047253152,31.62,220.14,220.12,0.75]
[1760047253318,21.51,220.19,220.13,0.65]
[1760047253523,31.62,220.18,220.13,0.65]
[1760047254220,31.62,220.18,220.14,0.65]
[1760047254840,31.62,220.18,220.15,0.65]
[1760047255038,31.62,220.18,220.16,0.65]
[1760047255447,4.5416673,220.19,220.14,0.65]
[1760047255650,31.7,220.18,220.12,0.1]
[1760047255861,4.54135169,220.2,220.15,0.65]
[1760047256153,4.54135169,220.2,220.12,4.64292609]
[1760047256154,31.68,220.19,220.16,0.65]
[1760047257633,36.22169928,220.19,220.16,0.65]
[1760047258254,0.71,220.18,220.12,0.1]
[1760047258931,0.71,220.18,220.12,0.75]
[1760047260436,5.25180938,220.18,220.12,0.75]
[1760047260632,0.71,220.18,220.12,0.75]